bitfinex/quotes_ETHUSD_20260126
["timestamp","ask_amount","ask_price","bid_price","bid_amount"]
[1769457747909,3.260896,2929.4,2927.7,3.4130181]
[1769457748304,3.260896,2929.4,2927.8,3.4120181]
[1769457748915,3.260896,2929.4,2927.9,0.001]
[1769457749087,0.002,2929.2,2927.9,0.001]
[1769457749289,3.260896,2929.2,2927.9,0.001]
[1769457750506,3.258896,2929.0,2927.9,0.001]
[1769457750688,3.258896,2929.0,2927.7,0.001]
[1769457751534,3.258896,2928.8,2927.7,0.001]
[1769457751715,0.41124588,2928.7,2927.8,3.4120181]
[1769457751916,0.716,2928.9,2927.8,3.4120181]
[1769457754428,1.56956334,2928.9,2927.8,3.4120181]
[1769457755027,1.56956334,2928.9,2927.7,0.001]
[1769457755028,3.258896,2928.8,2927.7,0.001]
[1769457755619,0.85362106,2928.7,2927.7,0.001]
[1769457755933,0.41125171,2928.6,2927.7,0.001]
[1769457756737,0.41125171,2928.6,2927.7,3.4130181]
[1769457757034,1.56958158,2928.9,2927.7,3.4130181]
[1769457760016,1.56957142,2928.9,2927.7,3.4130181]
[1769457760732,3.258896,2928.3,2926.9,0.001]
[1769457761034,3.5847856,2928.2,2926.9,3.4130181]
[1769457761346,0.716,2928.1,2926.9,3.4130181]
[1769457761640,0.3258896,2928.2,2926.9,3.4130181]
[1769457761936,0.716,2928.3,2926.9,3.4130181]
[1769457763140,0.85563053,2928.7,2927.3,3.4120181]
[1769457763329,0.002,2928.7,2928.1,3.4120181]
[1769457763530,0.002,2928.9,2928.1,3.4120181]
[1769457763712,0.002,2928.9,2928.3,3.4120181]
[1769457766216,0.002,2929.2,2928.4,3.4120181]
[1769457772755,0.002,2930.0,2928.7,0.01707155]
[1769457773058,0.002,2930.0,2928.8,3.25179491]
[1769457773222,0.002,2930.0,2929.0,3.25179491]
[1769457773626,0.001,2929.2,2929.0,3.25179491]
[1769457774924,0.001,2929.2,2928.9,0.32517949]
[1769457775548,0.001,2929.2,2928.9,3.5769744]
[1769457776361,0.001,2929.2,2928.6,3.25179491]
[1769457779838,0.001,2929.2,2928.3,4.10551591]
[1769457780085,0.001,2929.2,2928.5,0.85366187]
[1769457780529,0.001,2929.2,2928.5,4.10545678]
[1769457780733,0.001,2929.2,2928.5,4.10545465]
[1769457781039,0.002,2930.0,2928.8,3.25179491]
[1769457781769,3.3106565,2930.0,2928.8,3.25179491]
[1769457781939,3.3106565,2930.0,2928.9,3.25179491]
[1769457785639,0.002,2929.8,2928.9,3.25179491]
[1769457789050,0.002,2929.8,2929.0,3.25179491]
[1769457789256,0.002,2929.8,2928.9,0.8535618]
[1769457789257,0.002,2929.8,2929.2,3.25179491]
[1769457791451,0.002,2929.8,2928.7,0.85360205]
[1769457791675,0.002,2929.8,2928.8,3.25179491]
[1769457792576,0.002,2929.8,2928.6,0.75302854]
[1769457792782,3.3106565,2929.8,2928.6,4.00482345]
[1769457793001,3.64192215,2929.8,2928.7,3.7376433]
[1769457795465,0.002,2929.8,2928.8,3.25179491]
[1769457795882,0.002,2929.8,2928.8,3.26886646]
[1769457796081,0.002,2930.0,2928.9,3.25179491]
[1769457796603,0.002,2930.0,2929.1,3.25179491]
[1769457797183,0.002,2930.1,2929.2,3.25179491]
[1769457797380,0.002,2930.1,2929.0,0.87060517]
[1769457797381,0.002,2929.8,2929.4,3.25179491]
[1769457801804,0.002,2929.8,2929.1,3.44213896]
[1769457804878,0.002,2929.8,2929.1,4.29564264]
[1769457805898,0.002,2929.8,2929.1,3.44213896]
[1769457806209,0.002,2929.8,2929.1,4.29564184]
[1769457806414,0.002,2929.8,2929.3,3.44213896]
[1769457808916,0.002,2929.8,2929.5,0.001]
[1769457810719,0.002,2929.8,2928.9,3.44313896]
[1769457811319,3.41543139,2929.8,2928.9,0.001]
[1769457814103,0.002,2929.8,2928.9,3.44313896]
[1769457814305,0.002,2929.8,2929.0,3.78645286]
[1769457817097,0.002,2929.8,2929.1,3.44213896]
[1769457820314,0.002,2929.8,2929.2,0.001]
[1769457820504,0.002,2929.6,2929.2,0.001]
[1769457821512,3.41543139,2929.6,2928.9,0.001]
[1769457821706,0.34154314,2929.5,2928.9,0.001]
[1769457821902,0.002,2929.6,2928.9,0.001]
[1769457822302,0.002,2929.6,2928.9,3.44313896]
[1769457825905,0.002,2929.6,2928.9,0.001]
[1769457828457,3.41543139,2929.6,2928.9,0.001]
[1769457832860,3.41543139,2929.6,2929.1,0.001]
[1769457833059,0.34154314,2929.5,2929.1,0.001]
[1769457834622,0.002,2929.6,2929.1,3.35103076]
[1769457835736,0.002,2929.6,2929.2,0.03409916]
[1769457839559,0.002,2929.6,2929.2,3.38412992]
[1769457839770,0.002,2929.8,2929.3,3.35003076]
[1769457839940,0.002,2929.8,2929.4,3.38412759]
[1769457840326,0.002,2929.8,2929.4,3.35003076]
[1769457841078,0.002,2929.8,2929.2,3.35003076]
[1769457841238,0.002,2929.8,2929.2,4.25799415]
[1769457843651,0.002,2929.8,2929.3,3.35003076]
[1769457843854,0.002,2930.4,2929.7,3.35003076]
[1769457844038,0.002,2930.4,2929.3,0.01707155]
[1769457844039,0.002,2930.4,2929.9,9.07863393]
[1769457844241,0.002,2930.4,2929.9,3.35003076]
[1769457844730,3.53210499,2930.5,2929.5,3.35003076]
[1769457844935,3.88351549,2930.4,2929.5,3.35003076]
[1769457845660,3.88351549,2930.4,2929.3,9.07863393]
[1769457846071,3.88351549,2930.4,2929.3,3.35003076]
[1769457846432,3.88351549,2930.4,2929.3,4.20347525]
[1769457846632,3.88351549,2930.4,2929.3,3.35003076]
[1769457846937,3.88351549,2930.4,2929.4,3.86117582]
[1769457847776,0.3534105,2930.4,2929.4,3.86117582]
[1769457848764,3.53010499,2930.3,2929.4,0.51114506]
[1769457849059,3.53010499,2930.3,2929.3,5.72860317]
[1769457849357,3.53010499,2930.3,2929.3,9.07863393]
[1769457849563,3.53010499,2930.3,2929.3,5.72860317]
[1769457849763,3.53010499,2930.3,2929.1,0.001]
[1769457851762,3.53010499,2930.3,2929.1,3.35103076]
[1769457851965,3.91845654,2930.2,2929.2,0.42045628]
[1769457852532,3.91845654,2930.2,2929.2,3.77048704]
[1769457852764,0.38835155,2930.2,2929.2,3.77048704]
[1769457853990,3.53010499,2930.4,2929.3,9.07863393]
[1769457856580,3.53010499,2930.4,2929.4,0.001]
[1769457858587,3.53010499,2930.4,2929.4,3.35103076]
[1769457859470,0.00100594,2930.5,2929.4,3.35103076]
[1769457860890,3.27383739,2930.5,2929.4,3.35103076]
[1769457861115,0.32758374,2930.4,2929.4,3.35103076]
[1769457861892,3.27283145,2930.4,2929.4,3.35103076]
[1769457863421,0.00100594,2930.5,2930.0,3.28284535]
[1769457863927,0.00100594,2930.5,2929.8,9.00825412]
[1769457864115,0.00100594,2930.5,2929.8,3.28284535]
[1769457864354,0.00100594,2930.5,2929.8,3.61112989]
[1769457865003,3.27383739,2930.5,2929.6,3.28284535]
[1769457865201,3.27383739,2930.5,2929.4,3.28384535]
[1769457867840,3.27383739,2930.5,2929.6,0.001]
[1769457871160,3.27283145,2930.3,2929.4,0.001]
[1769457874864,0.715,2930.2,2929.4,0.001]
[1769457875068,3.27283145,2930.1,2929.4,0.001]
[1769457877592,0.715,2930.2,2929.4,3.28384535]
[1769457878784,3.98783145,2930.2,2929.4,0.001]
[1769457879073,3.27283145,2930.0,2929.4,0.001]
[1769457879455,3.27283145,2930.0,2929.6,0.001]
[1769457879657,0.002,2929.9,2929.6,0.001]
[1769457884486,0.00100594,2930.5,2929.8,3.28284535]
[1769457884713,0.002,2931.2,2929.6,0.001]
[1769457884714,3.27483145,2931.0,2930.4,5.72540877]
[1769457884856,3.27483145,2931.0,2930.1,9.00825412]
[1769457885165,0.002,2931.0,2930.2,3.28284535]
[1769457885891,3.27483145,2931.0,2929.9,3.28284535]
[1769457886092,3.27283145,2930.7,2929.6,0.001]
[1769457886259,3.27283145,2930.5,2929.6,0.001]
[1769457886655,0.715,2930.5,2929.6,3.28384535]
[1769457886855,0.715,2930.5,2929.6,0.001]
[1769457887072,3.98783145,2930.5,2929.6,0.001]
[1769457887878,3.27283145,2930.4,2929.6,0.001]
[1769457888052,3.27283145,2930.2,2929.6,0.001]
[1769457891892,0.002,2930.0,2929.6,0.001]
[1769457894601,0.002,2930.2,2929.6,0.001]
[1769457894602,3.26719159,2930.4,2929.6,0.001]
[1769457895476,3.31319159,2930.5,2929.6,0.001]
[1769457895687,3.31319159,2930.8,2929.8,9.22680768]
[1769457895872,4.02819159,2930.8,2929.9,3.50139891]
[1769457899019,4.88120773,2930.8,2929.9,3.50139891]
[1769457900222,0.85495683,2931.0,2929.9,3.50139891]
[1769457900390,4.02819159,2930.9,2929.7,0.35023989]
[1769457900596,4.02819159,2930.9,2929.8,0.38526388]
[1769457900796,4.88117637,2930.9,2929.8,0.38526388]
[1769457901114,3.31319159,2930.8,2929.8,0.38526388]
[1769457901309,3.31319159,2930.8,2929.8,3.88666279]
[1769457904435,3.31319159,2930.8,2929.8,3.88766279]
[1769457904636,0.40281916,2930.7,2929.8,3.88766279]
[1769457905228,3.71601075,2930.7,2929.8,3.88766279]
[1769457906544,3.71601075,2930.7,2929.8,3.50239891]
[1769457907825,3.71601075,2930.7,2929.8,0.001]
[1769457908049,3.31319159,2930.6,2929.8,0.001]
[1769457910155,3.31319159,2930.5,2929.8,0.001]
[1769457911460,3.31319159,2930.4,2929.8,0.001]
[1769457911666,3.31319159,2930.2,2929.8,0.001]
[1769457911861,0.715,2930.1,2929.8,0.001]
[1769457915956,0.715,2930.1,2930.0,0.001]
[1769457916162,0.715,2930.1,2929.8,0.001]
[1769457917855,0.715,2930.1,2929.8,3.50239891]
[1769457918061,0.715,2930.1,2929.8,3.8527388]
[1769457918779,0.717,2930.5,2929.9,3.19853093]
[1769457919678,0.717,2930.5,2929.8,0.001]
[1769457919679,4.1598888,2930.5,2929.8,0.001]
[1769457919842,0.41598888,2930.4,2929.8,0.001]
[1769457921583,3.4428888,2929.8,2929.1,0.001]
[1769457921782,3.4428888,2929.5,2928.6,0.001]
[1769457921982,3.4428888,2929.3,2928.6,0.001]
[1769457922182,1.63182976,2929.4,2928.6,0.001]
[1769457923482,3.41302439,2930.0,2928.6,3.14707375]
[1769457923483,3.4428888,2930.0,2928.6,3.14707375]
[1769457923678,4.1578888,2929.9,2928.6,3.14707375]
[1769457924677,3.4428888,2929.9,2928.6,3.14707375]
[1769457924864,5.73129916,2930.3,2928.7,3.14607375]
[1769457924865,0.715,2929.8,2928.7,3.14607375]
[1769457925279,0.002,2930.5,2929.5,3.14607375]
[1769457925460,0.002,2930.5,2929.8,5.73129916]
[1769457925660,0.002,2930.5,2929.8,3.14607375]
[1769457926985,0.002,2930.5,2929.6,0.88773729]
[1769457927182,0.002,2930.5,2929.5,3.14607375]
[1769457928505,0.002,2930.2,2929.5,3.14607375]
[1769457928706,0.002,2930.2,2929.6,3.14607375]
[1769457928871,0.002,2930.5,2930.0,3.14607375]
[1769457929070,0.002,2931.3,2929.9,5.73129916]
[1769457929270,0.002,2931.3,2929.6,0.87042214]
[1769457929271,0.002,2931.3,2930.3,3.14607375]
[1769457930893,0.002,2931.3,2930.6,3.14607375]
[1769457937522,0.002,2931.4,2930.8,3.14607375]
[1769457939485,3.4428888,2931.3,2930.0,3.71920367]
[1769457939700,0.002,2931.4,2930.1,3.14607375]
[1769457939919,0.002,2931.4,2930.3,3.14607375]
[1769457940297,0.002,2931.4,2930.8,0.001]
[1769457940691,3.4448888,2931.4,2930.8,0.001]
[1769457942525,4.29773329,2931.4,2930.8,0.001]
[1769457942889,4.29773329,2931.4,2929.4,3.99948475]
[1769457943132,3.4428888,2931.2,2929.7,3.14607375]
[1769457944544,4.2958034,2931.2,2929.7,3.14607375]
[1769457947544,4.29579932,2931.2,2929.7,3.14607375]
[1769457947741,3.4428888,2931.2,2929.9,3.14607375]
[1769457947942,4.29774086,2931.4,2929.9,3.14607375]
[1769457948242,0.002,2931.4,2930.2,3.14607375]
[1769457949760,3.19020883,2931.3,2930.2,3.14607375]
[1769457950053,3.19020883,2931.3,2929.6,3.20540652]
[1769457950542,3.19020883,2931.3,2929.7,3.20540652]
[1769457950848,3.19020883,2931.1,2929.8,3.61128288]
[1769457952456,3.19020883,2931.1,2930.0,3.20640652]
[1769457952861,4.04313443,2931.1,2930.0,3.20640652]
[1769457953029,3.19020883,2931.1,2930.0,3.20640652]
[1769457959354,3.19020883,2931.0,2930.0,0.001]
[1769457959562,0.31902088,2930.9,2930.0,3.20640652]
[1769457959733,4.3623294,2931.2,2930.0,3.20640652]
[1769457960135,3.19020883,2931.1,2930.0,3.20640652]
[1769457960737,4.04313358,2931.1,2930.0,3.20640652]
[1769457961058,3.19020883,2931.0,2930.0,3.20640652]
[1769457961428,3.73086289,2931.2,2930.0,3.20640652]
[1769457961429,1.17213592,2931.2,2930.0,3.20640652]
[1769457961630,3.19020883,2931.1,2930.0,3.20640652]
[1769457962741,4.04315224,2931.1,2930.0,3.20640652]
[1769457963056,0.85294341,2931.1,2930.0,3.20640652]
[1769457963264,3.19020883,2931.0,2930.0,3.20640652]
[1769457964081,3.19020883,2930.7,2930.0,0.001]
[1769457964292,3.19020883,2930.4,2929.3,3.20540652]
[1769457965946,4.08180748,2930.6,2929.3,3.20540652]
[1769457966145,4.75821908,2930.8,2929.3,3.20540652]
[1769457966372,3.90520883,2930.8,2929.3,3.20540652]
[1769457966564,4.75822844,2930.8,2929.3,3.20540652]
[1769457966753,3.90520883,2930.8,2929.5,3.20540652]
[1769457967155,0.715,2930.8,2929.5,3.20540652]
[1769457968278,0.715,2930.8,2929.7,3.20540652]
[1769457972455,3.19020883,2930.7,2929.7,3.20540652]
[1769457972856,3.19020883,2930.7,2929.2,3.20540652]
[1769457973093,3.19020883,2930.7,2929.3,3.20540652]
[1769457974074,3.19020883,2930.6,2929.3,3.20540652]
[1769457974282,3.19020883,2930.4,2929.3,3.52594717]
[1769457974781,0.40432538,2930.5,2929.3,3.52594717]
[1769457976372,0.40432538,2930.5,2929.4,3.20540652]
[1769457976572,3.90520883,2930.8,2929.6,3.20540652]
[1769457976774,0.002,2930.5,2929.6,3.20540652]
[1769457983414,3.3275578,2930.5,2929.6,3.20540652]
[1769457985018,3.3255578,2930.4,2929.5,0.001]
[1769457985217,3.3255578,2930.2,2929.5,0.001]
[1769457987928,0.41806547,2930.3,2929.7,3.34889151]
[1769457988122,0.002,2930.5,2929.7,3.34889151]
[1769457988330,0.002,2930.5,2929.8,3.34989151]
[1769457988629,0.002,2930.3,2929.8,3.34989151]
[1769457989433,3.3255578,2930.2,2929.5,0.001]
[1769457989725,0.002,2930.3,2929.5,0.001]
[1769457989726,4.37331358,2930.1,2929.5,0.001]
[1769457990625,3.3255578,2930.0,2929.5,0.001]
[1769457991227,3.3255578,2929.9,2929.5,0.001]
[1769457991529,3.3255578,2929.9,2928.8,0.001]
[1769457994638,3.3255578,2929.9,2928.8,3.34989151]
[1769457994845,0.33255578,2929.8,2928.8,3.34989151]
[1769457995417,3.65811358,2929.8,2928.8,3.34989151]
[1769457997848,0.33255578,2929.8,2928.8,3.34989151]
[1769457999850,0.715,2929.9,2928.8,3.34989151]
[1769458000338,0.715,2929.9,2929.1,3.34889151]
[1769458000633,0.002,2929.6,2929.1,3.34889151]
[1769458001817,0.002,2929.8,2929.2,3.34889151]
[1769458002980,0.002,2930.5,2929.6,3.34889151]
[1769458003271,0.002,2930.5,2929.8,3.34889151]
[1769458005475,0.002,2930.7,2929.9,3.34889151]
[1769458007250,0.002,2930.7,2929.9,0.85327125]
[1769458007528,0.002,2930.7,2930.0,3.34889151]
[1769458012656,0.002,2930.5,2930.0,3.34889151]
[1769458012863,0.002,2930.5,2930.2,3.31562588]
[1769458014762,0.002,2930.5,2929.8,3.31562588]
[1769458016635,3.43381458,2930.5,2929.4,7.20562588]
[1769458016835,3.43381458,2930.5,2929.4,3.31562588]
[1769458017435,3.43381458,2930.5,2929.0,10.46929853]
[1769458017436,3.43181458,2930.1,2929.1,3.31562588]
[1769458017740,4.3474733,2930.0,2929.1,3.31562588]
[1769458018983,3.43181458,2929.9,2929.0,0.001]
[1769458021281,3.43181458,2929.9,2929.0,3.31662588]
[1769458021963,3.43181458,2929.9,2929.0,0.001]
[1769458022981,3.43181458,2929.9,2928.8,3.28914365]
[1769458023183,3.77499604,2929.8,2928.8,3.28914365]
[1769458024163,3.77499604,2929.8,2929.2,0.001]
[1769458026689,3.43181458,2929.7,2927.9,3.31662588]
[1769458026886,3.43181458,2929.5,2927.9,0.001]
[1769458027194,3.43181458,2929.3,2927.9,0.001]
[1769458027491,3.43181458,2929.1,2927.9,0.001]
[1769458028059,3.43181458,2929.1,2927.0,3.31562588]
[1769458028884,3.43181458,2928.7,2926.9,0.001]
[1769458029783,3.43181458,2928.7,2926.9,3.31662588]
[1769458030998,3.43181458,2928.5,2926.9,3.31662588]
[1769458031203,3.43181458,2928.3,2926.9,3.64828847]
[1769458032880,4.28555895,2928.3,2926.9,3.64828847]
[1769458033082,3.43181458,2928.3,2926.9,3.64828847]
[1769458033407,4.28555579,2928.3,2926.9,3.64828847]
[1769458033998,4.28555579,2928.3,2926.9,0.33266259]
[1769458034308,3.43181458,2928.1,2926.9,0.001]
[1769458034480,4.14681458,2928.1,2926.9,0.001]
[1769458034998,4.14681458,2928.1,2926.9,3.31662588]
[1769458035195,0.81289512,2928.2,2926.9,3.31662588]
[1769458035811,0.81289512,2928.2,2927.2,3.31562588]
[1769458036179,0.49597097,2928.1,2927.2,3.31562588]
[1769458040315,3.69036137,2928.1,2927.1,0.001]
[1769458040508,3.1943904,2928.0,2927.1,0.001]
[1769458042605,3.1943904,2928.0,2927.1,3.29337045]
[1769458042800,3.1943904,2928.0,2927.1,0.001]
[1769458043005,3.1943904,2927.8,2927.1,0.001]
[1769458044334,0.45441626,2927.9,2927.1,0.001]
[1769458044335,0.45441626,2927.9,2927.1,3.29337045]
[1769458046818,0.716,2928.1,2927.1,3.29337045]
[1769458047045,3.9103904,2928.4,2927.1,3.29337045]
[1769458047916,3.9103904,2928.4,2927.4,3.29237045]
[1769458050718,3.1943904,2928.3,2927.3,0.001]
[1769458051854,3.1943904,2928.2,2927.3,0.001]
[1769458052049,3.59920373,2928.1,2927.3,0.001]
[1769458059459,3.59920373,2928.1,2927.5,0.001]
[1769458059641,0.002,2927.9,2927.5,0.001]
[1769458060954,0.002,2927.9,2927.5,3.29337045]
[1769458063254,0.002,2927.9,2927.5,0.001]
[1769458065890,0.32183904,2927.9,2927.5,0.001]
[1769458067759,0.002,2927.9,2927.5,0.001]
[1769458069976,0.716,2927.8,2927.5,3.2496083]
[1769458070687,0.002,2928.1,2927.6,3.2486083]
[1769458070892,0.718,2928.1,2927.6,3.2486083]
[1769458071786,0.002,2927.9,2927.6,3.2486083]
[1769458072384,0.002,2927.9,2927.5,0.001]
[1769458072385,0.002,2927.9,2927.1,0.8540813]
[1769458072694,0.002,2927.9,2927.2,3.90769809]
[1769458073976,0.002,2928.1,2927.4,3.2486083]
[1769458075178,0.002,2928.1,2927.5,0.03415883]
[1769458075379,0.002,2928.1,2927.6,3.2486083]
[1769458077109,0.002,2928.1,2927.4,3.2486083]
[1769458077308,3.46909926,2928.1,2927.0,3.2486083]
[1769458077507,0.92259159,2928.1,2927.1,3.96246913]
[1769458077726,0.92259159,2928.1,2927.2,3.2486083]
[1769458077727,0.002,2928.1,2927.2,3.2486083]
[1769458080715,3.46909926,2928.1,2927.2,3.2486083]
[1769458081216,3.46909926,2928.1,2927.1,0.71386083]
[1769458081414,3.46909926,2928.1,2927.0,3.2486083]
[1769458082690,3.46909926,2928.1,2926.7,9.83961381]
[1769458082887,3.46909926,2928.1,2926.8,0.85417203]
[1769458083082,3.46909926,2928.1,2926.7,9.83960712]
[1769458083283,3.46709926,2927.8,2926.9,3.2486083]
[1769458083500,3.46709926,2927.8,2927.0,0.41027809]
[1769458089627,3.46709926,2927.8,2926.3,3.41725065]
[1769458089628,3.46709926,2927.2,2926.2,3.2486083]
[1769458089994,0.716,2927.4,2926.3,3.2486083]
[1769458090525,4.18309926,2927.4,2926.3,3.2486083]
[1769458091928,4.18309926,2927.4,2926.0,6.59120298]
[1769458091929,4.18309926,2927.4,2926.0,3.2486083]
[1769458092121,3.46709926,2927.2,2926.1,3.65891262]
[1769458093109,3.46709926,2927.2,2926.1,0.41030432]
[1769458093620,3.46709926,2927.2,2925.9,3.2486083]
[1769458094827,3.46709926,2926.9,2925.7,3.2486083]
[1769458095101,3.46709926,2926.9,2926.4,0.001]
[1769458104449,3.37715175,2927.2,2926.4,0.001]
[1769458104601,0.41830993,2927.3,2926.4,3.59376754]
[1769458104807,0.716,2927.5,2926.6,3.59276754]
[1769458105002,3.37915175,2927.9,2926.6,3.59276754]
[1769458105208,0.716,2927.8,2926.6,3.59276754]
[1769458105818,4.09315175,2927.8,2926.6,3.59276754]
[1769458106634,4.09315175,2927.8,2926.6,3.59376754]
[1769458106938,3.78666692,2927.7,2926.7,3.98808197]
[1769458108506,3.78666692,2927.7,2926.4,0.85527578]
[1769458108507,3.37715175,2927.0,2926.4,0.001]
[1769458113928,3.37715175,2927.3,2926.4,0.001]
[1769458114129,3.37715175,2927.3,2926.4,3.59376754]
[1769458117736,3.37715175,2927.3,2924.8,3.61507155]
[1769458117737,9.11607642,2926.9,2925.6,3.59276754]
[1769458118048,9.11607642,2926.9,2925.3,3.41836241]
[1769458118049,0.91160764,2926.8,2925.8,3.59276754]
[1769458118237,4.28875939,2926.8,2925.8,3.59276754]
[1769458118614,3.37715175,2926.5,2925.3,3.59276754]
[1769458119316,3.37715175,2926.7,2925.3,4.4473598]
[1769458119852,3.37715175,2926.7,2925.3,3.59276754]
[1769458120163,3.80602769,2926.6,2925.5,3.59276754]
[1769458120968,0.42887594,2926.6,2925.5,3.59276754]
[1769458121126,4.09315175,2926.9,2925.5,3.59276754]
[1769458121953,4.09315175,2926.9,2925.5,4.44731728]
[1769458122429,4.09315175,2926.9,2925.5,3.59276754]
[1769458123249,4.09315175,2926.9,2925.5,4.44731753]
[1769458123454,4.09315175,2926.9,2925.5,3.59276754]
[1769458123753,4.09315175,2926.9,2925.4,1.29930124]
[1769458123754,0.40931518,2926.8,2925.7,3.59276754]
[1769458123959,3.37715175,2927.1,2925.7,4.44724192]
[1769458126829,3.37715175,2927.1,2925.6,0.48920688]
[1769458127049,3.37715175,2927.0,2925.3,3.59276754]
[1769458127642,3.37715175,2927.0,2925.3,4.44738042]
[1769458127844,3.37715175,2927.0,2925.3,3.59276754]
[1769458128053,3.37715175,2926.8,2925.3,4.44737903]
[1769458129757,3.37715175,2926.8,2925.3,3.59276754]
[1769458129958,3.5068572,2926.6,2925.4,0.44473857]
[1769458130262,3.5068572,2926.6,2925.4,4.14588393]
[1769458130555,3.5068572,2926.6,2925.5,0.001]
[1769458133962,4.36109393,2926.6,2925.5,0.001]
[1769458134869,3.5068572,2926.4,2925.5,0.001]
[1769458135161,3.5068572,2926.2,2925.5,0.001]
[1769458141263,3.5068572,2926.2,2924.4,9.44579808]
[1769458141568,3.5068572,2926.2,2924.7,9.44579808]
[1769458142059,3.5068572,2926.2,2924.8,4.55590049]
[1769458142264,3.5068572,2926.2,2925.1,3.70114536]
[1769458142439,3.5068572,2926.2,2925.0,5.74465272]
[1769458142440,3.5068572,2926.2,2925.3,3.70114536]
[1769458142636,1.13828572,2926.3,2925.3,3.70114536]
[1769458143056,3.5068572,2926.2,2925.3,3.70114536]
[1769458143767,3.5068572,2926.2,2925.5,0.001]
[1769458145131,0.716,2926.3,2925.5,3.70214536]
[1769458145336,0.716,2926.3,2925.5,4.0723599]
[1769458149366,4.2228572,2926.3,2925.5,0.001]
[1769458155379,0.002,2926.1,2925.5,0.001]
[1769458164757,0.002,2926.3,2925.7,3.68157126]
[1769458168396,0.002,2926.1,2925.7,3.68157126]
[1769458168573,0.002,2926.1,2925.8,0.9426224]
[1769458169778,0.002,2926.1,2925.7,3.68157126]
[1769458171793,3.56491696,2927.0,2926.1,3.68157126]
[1769458173062,3.56491696,2927.0,2925.8,3.68157126]
[1769458177103,3.56491696,2926.5,2925.5,0.001]
[1769458179813,3.56491696,2926.5,2926.0,0.001]
[1769458180017,3.56491696,2926.3,2925.5,0.001]
[1769458188733,3.55558736,2926.1,2925.5,0.001]
[1769458188894,0.716,2926.2,2924.6,4.6643511]
[1769458188895,3.55558736,2925.9,2924.6,4.6643511]
[1769458189492,3.55558736,2925.9,2924.6,3.80954803]
[1769458189726,3.55558736,2925.9,2924.6,4.66436022]
[1769458189923,3.55558736,2925.7,2924.7,0.80837391]
[1769458190091,3.55558736,2925.7,2924.7,4.61792194]
[1769458190417,3.55558736,2925.7,2924.7,3.80954803]
[1769458190945,3.55558736,2925.7,2924.5,4.66439364]
[1769458192730,3.55558736,2925.7,2924.7,0.001]
[1769458192893,3.55558736,2925.7,2924.7,3.81054803]
[1769458194694,3.55558736,2925.7,2924.7,0.001]
[1769458195031,3.55558736,2925.5,2924.7,0.001]
[1769458195395,0.35555874,2925.6,2924.7,3.81054803]
[1769458196133,0.35555874,2925.6,2924.8,0.03408278]
[1769458197827,3.9111461,2925.6,2924.7,3.84462847]
[1769458198023,3.9111461,2925.6,2924.7,3.81054803]
[1769458198230,0.39111461,2925.5,2924.8,0.03407809]
[1769458199028,3.94670197,2925.5,2924.8,0.03407809]
[1769458199218,3.94670197,2925.5,2924.7,0.03507809]
[1769458199397,3.94670197,2925.5,2924.7,0.001]
[1769458200601,3.94670197,2925.5,2924.7,3.81054803]
[1769458200804,3.94670197,2925.5,2924.8,0.03407575]
[1769458201002,3.94670197,2925.5,2924.7,3.81054803]
[1769458202325,0.39111461,2925.5,2924.7,4.61902161]
[1769458202519,3.55558736,2925.8,2924.7,4.61902161]
[1769458202733,3.55558736,2925.8,2924.7,3.81054803]
[1769458203335,3.55558736,2926.0,2924.7,4.66533517]
[1769458203830,3.55558736,2926.3,2925.0,3.80954803]
[1769458204023,4.27158736,2926.2,2925.0,3.80954803]
[1769458204332,0.002,2925.6,2925.0,3.80954803]
[1769458204524,0.002,2925.6,2925.1,4.76473169]
[1769458205226,0.002,2925.6,2925.1,0.95518366]
[1769458206155,0.002,2925.6,2925.1,4.76473169]
[1769458209421,0.002,2925.6,2925.2,3.80954803]
[1769458211227,3.55758736,2926.8,2925.6,3.80954803]
[1769458211544,4.27358736,2926.8,2925.6,3.80954803]
[1769458211943,0.718,2926.8,2925.6,3.80954803]
[1769458212248,0.002,2928.2,2926.7,5.74228861]
[1769458212541,3.55758736,2928.5,2928.0,0.17834089]
[1769458212708,3.55558736,2928.3,2928.0,0.17834089]
[1769458213105,0.002,2928.5,2928.0,0.17834089]
[1769458213345,0.35946589,2928.5,2928.0,0.17834089]
[1769458216708,0.002,2928.3,2928.0,0.17834089]
[1769458217729,0.002,2928.3,2927.5,3.80954803]
[1769458221054,0.01707155,2927.9,2926.8,4.69422236]
[1769458221349,0.01707155,2927.9,2926.9,0.46942224]
[1769458221544,0.01707155,2927.9,2926.8,4.69422236]
[1769458224238,0.01707155,2927.9,2926.8,4.69422596]
[1769458226526,0.01707155,2927.9,2926.8,3.84005217]
[1769458226730,3.94627715,2927.9,2926.8,3.84005217]
[1769458227650,3.94627715,2927.9,2926.7,0.716]
[1769458227852,4.34261202,2927.9,2926.8,1.11525522]
[1769458228350,4.34261202,2927.9,2927.0,0.001]
[1769458228770,10.08490063,2927.9,2927.0,0.001]
[1769458228949,10.08490063,2927.9,2926.1,3.84005217]
[1769458228950,3.9292056,2927.3,2926.1,3.84005217]
[1769458229161,4.32383332,2927.3,2926.2,0.38400522]
[1769458229450,4.32383332,2927.3,2925.9,4.55605217]
[1769458229618,4.32383332,2927.3,2926.0,3.84005217]
[1769458229824,3.9292056,2927.1,2925.7,3.84005217]
[1769458231231,3.9292056,2927.1,2925.7,4.69453834]
[1769458231430,3.9292056,2927.1,2925.8,0.46945383]
[1769458231625,3.9292056,2927.1,2925.8,6.2104417]
[1769458231826,3.9292056,2927.1,2925.9,3.84005217]
[1769458239756,3.9292056,2927.1,2926.1,0.001]
[1769458240552,3.9292056,2927.1,2926.1,3.84105217]
[1769458240752,3.9292056,2927.1,2926.2,0.38410522]
[1769458247774,3.9292056,2927.1,2926.1,0.001]
[1769458250380,5.74098787,2926.9,2926.1,0.001]
[1769458250677,4.0312324,2926.8,2926.1,0.001]
[1769458250974,4.04830395,2926.8,2925.3,0.001]
[1769458251192,4.0312324,2926.6,2925.4,0.97350521]
[1769458251349,4.88546834,2926.6,2925.4,0.97350521]
[1769458251675,4.88546834,2926.6,2926.1,0.001]
[1769458251676,4.0312324,2926.6,2926.1,0.001]